Cogmind - Beta 11.1 @@@ ROGUE MODE // 2022.10.08 @ 20:26:31 // Winter2019/RPGLIKE Player: Storm Mk9 Result: Destroyed by H-66 Slayer with Gauss Rifle Performance ------------- Evolutions (5) 2500 Regions Visited (18) 3600 Robots Destroyed (408) 2040 Value Destroyed (17425) 17425 Prototype IDs (57) 1140 Alien Tech Used (0) 0 Bonus (10494) 10494 TOTAL SCORE: 37199 Bonus ------- Triggered High Security 500 High Alert Combat Kills 5576 Follower Combat Kills 1906 Entered Garrisons 600 Used RIF Installer 1500 Aligned with FarCom 300 Met Data Miner 300 Friendly Fire -188 Cogmind --------- Core Integrity 0/1450 Matter 253/300 Energy 445/515 System Corruption 6% Temperature Cool (66) Movement Treading (167) Location -5/Factory Parts ------- > --- POWER (3) -------- Cold Fusion Reactor Cold Fusion Reactor Neutrino Core > --- PROPULSION (4) --- Armored Treads Improved Medium Treads Armored Medium Treads Armored Medium Treads > --- UTILITY (5) ------ Advanced Targeting Computer Graphene Brace Relay Coupler [NC] (37) PSU Rigger > --- WEAPON (5) ------- Gamma Rifle Disruptor Cannon Heavy Plasma Cannon Heavy Plasma Cannon Improved Remote Datajack > --- INVENTORY (5) ---- Relay Coupler [NC] (58) Relay Coupler [Grunt] (48) Relay Coupler [Sentry] (52) Relay Coupler [Sentry] (40) Peak State ------------ > --- POWER ------------ Cold Fusion Reactor Cold Fusion Reactor Reinforced Fission Core > --- PROPULSION ------- Armored Treads Improved Medium Treads Armored Medium Treads Armored Medium Treads > --- UTILITY ---------- Advanced Targeting Computer Graphene Brace Relay Coupler [NC] Relay Coupler [Specialist] PSU Rigger > --- WEAPON ----------- Gamma Rifle Disruptor Cannon Heavy Plasma Cannon Heavy Plasma Cannon Improved Remote Datajack > --- INVENTORY -------- Relay Coupler [NC] Relay Coupler [Grunt] Relay Coupler [Grunt] Relay Coupler [Sentry] Relay Coupler [Sentry] [Rating: 93] Favorites ----------- Power Light Nuclear Core Engine Heavy Ion Engine Power Core Light Nuclear Core Reactor Cold Fusion Reactor Propulsion Armored Treads Treads Armored Treads Utility Advanced Targeting Computer Device PSU Rigger Processor Advanced Targeting Computer Hackware Relay Coupler [NC] Protection Improved Light Armor Plating Weapon EMP Blaster Energy Gun Heavy EM Shotgun Energy Cannon Improved EM Pulse Cannon Ballistic Gun Assault Rifle Launcher EMP Blaster Special Weapon Remote Datajack Special Melee Weapon Datajack Build | -11 -10 -10 -9 -9 -9 -8 -8 -8 -8 -8 -7 -7 -7 -7 -6 -6 -6 -5 ------- Run | Scr Mat Min Mat Min Exi Min Mat Gar Mat Gar Fac Low Low Dat Pro Fac Gar Fac Slots Evolved 13 | 5 . 1 2 . . . 3 . 1 . 1 . . . . . . . Power 2 | 1 . . . . . . 1 . . . . . . . . . . . Propulsion 3 | 1 . . . . . . 1 . 1 . . . . . . . . . Utility 4 | 1 . 1 1 . . . . . . . 1 . . . . . . . Weapon 4 | 2 . . 1 . . . 1 . . . . . . . . . . . Parts Attached 96 | 7 10 5 6 . 1 1 13 3 2 5 14 1 . . 2 12 2 12 Power 22 | 2 1 1 2 . . . 1 1 . 2 3 1 . . 2 2 . 4 Engine 11 | 2 . 1 1 . . . . . . 1 3 . . . 2 1 . . Core 9 | . 1 . 1 . . . 1 1 . 1 . 1 . . . . . 3 Reactor 2 | . . . . . . . . . . . . . . . . 1 . 1 Propulsion 13 | 2 . . 2 . . . 3 . . 1 2 . . . . 1 . 2 Treads 13 | 2 . . 2 . . . 3 . . 1 2 . . . . 1 . 2 Leg . | . . . . . . . . . . . . . . . . . . . Wheel . | . . . . . . . . . . . . . . . . . . . Hover . | . . . . . . . . . . . . . . . . . . . Flight . | . . . . . . . . . . . . . . . . . . . Utility 28 | . 3 3 1 . 1 . 2 2 2 1 4 . . . . 4 2 3 Device 11 | . 1 1 . . 1 . . . . . 3 . . . . 2 1 2 Storage . | . . . . . . . . . . . . . . . . . . . Processor 3 | . 1 . . . . . . 2 . . . . . . . . . . Hackware 6 | . . . . . . . . . 1 1 1 . . . . 1 1 1 Protection 8 | . 1 2 1 . . . 2 . 1 . . . . . . 1 . . Artifact . | . . . . . . . . . . . . . . . . . . . Weapon 33 | 3 6 1 1 . . 1 7 . . 1 5 . . . . 5 . 3 Energy Gun 10 | . 3 . . . . . 4 . . . 2 . . . . . . 1 Energy Cannon 9 | . . . . . . 1 1 . . . 2 . . . . 4 . 1 Ballistic Gun 3 | 3 . . . . . . . . . . . . . . . . . . Ballistic Cannon . | . . . . . . . . . . . . . . . . . . . Launcher 5 | . 2 1 1 . . . 1 . . . . . . . . . . . Special Weapon 4 | . . . . . . . . . . 1 1 . . . . 1 . 1 Impact Weapon . | . . . . . . . . . . . . . . . . . . . Slashing Weapon . | . . . . . . . . . . . . . . . . . . . Piercing Weapon . | . . . . . . . . . . . . . . . . . . . Special Melee Weapon 2 | . 1 . . . . . 1 . . . . . . . . . . . Unidentified Prototypes 11 | . . 1 1 . . . 3 . . . 3 . . . . 2 . 1 Parts Lost 4 | . . . . . . 1 . . . 1 1 1 . . . . . . Power 2 | . . . . . . . . . . 1 . 1 . . . . . . Propulsion . | . . . . . . . . . . . . . . . . . . . Utility 1 | . . . . . . 1 . . . . . . . . . . . . Weapon 1 | . . . . . . . . . . . 1 . . . . . . . Highest Loss Streak 1 | . . . . . . 1 . . . 1 1 1 . . . . . . To Critical Strikes . | . . . . . . . . . . . . . . . . . . . Average Slot Usage (%) 96 | . 96 99 88 91 88 89 95 98 97 93 97 100 98 94 94 98 100 99 Engine 9 | . 14 10 8 8 8 8 6 6 6 7 13 12 11 11 12 15 11 5 Core 6 | . 7 10 8 8 8 8 5 11 12 10 3 3 5 5 3 . . 3 Treads 21 | . 22 20 16 16 16 16 20 20 19 18 24 23 23 23 23 23 23 23 Device 8 | . 9 10 8 8 9 16 14 9 6 6 5 11 11 11 11 6 5 10 Processor 9 | . 8 10 8 8 8 8 6 9 12 12 11 11 11 11 11 11 10 5 Hackware 2 | . . . . . . . . . 2 1 5 5 3 . . 3 9 10 Protection 3 | . . 9 12 16 11 1 6 6 1 4 . . . . . 3 1 . Energy Gun 5 | . 13 10 8 8 8 8 2 6 6 6 5 5 5 5 5 1 . 1 Energy Cannon 10 | . . . . . . 4 12 13 12 12 11 11 11 11 11 14 17 17 Launcher 6 | . 6 9 8 8 8 8 6 6 6 6 5 5 5 5 5 5 5 3 Special Weapon 2 | . . . . . . . . . . . 5 5 5 5 5 4 5 4 Special Melee Weapon 3 | . 5 10 8 8 8 8 6 6 6 5 . . . . . . . . Naked Turns . | . . . . . . . . . . . . . . . . . . . Heaviest Build 88 | 13 18 21 29 29 29 31 50 53 54 54 61 61 57 57 61 83 83 88 Greatest Support 104 | 40 40 40 40 40 40 40 68 60 60 80 88 88 88 88 88 90 90 104 Greatest Overweight (x) 1 | . . . 1 . . . 1 . . . . . . . . . . . Average Overweight (x) . | . . . . . . . . . . . . . . . . . . . Largest Inventory Capacity 5 | . . . . 1 3 3 3 3 3 3 3 4 4 4 4 4 4 5 Average Capacity 2 | . . . . . 1 3 3 3 3 3 3 3 4 4 4 4 4 4 Most Carried 5 | . . . . . 1 2 3 3 3 3 3 4 4 4 4 4 4 5 Average Carried 2 | . . . . . . . 2 2 1 2 1 3 4 4 4 3 3 4 Final Capacity 5 | . . . . 1 3 3 3 3 3 3 3 4 4 4 4 4 4 5 Final Carried 4 | . . . . . . 1 3 3 3 3 3 4 4 4 4 4 4 4 Class Distribution -------------------- 24% | Hacker-Bomber 18% | Mutant 8% | Scavenger-Mutant 8% | Bomber 8% | Hacker-Mutant 7% | Bothacker-Bomber 6% | Gunner 6% | Tank 4% | Generator-Bomber 3% | Bothacker-Gunner Dominant Class ---------------- Mutant | -10/Materials Scavenger-Mutant | -10/Mines Mutant | -9/Materials Mutant | -9/Mines Mutant | -9/Exiles Mutant | -8/Mines Tank | -8/Materials Gunner | -8/Garrison Bomber | -8/Materials Bomber | -8/Garrison Hacker-Bomber | -7/Factory Hacker-Bomber | -7/Lower Caves Hacker-Bomber | -7/Lower Caves Hacker-Bomber | -7/Data Miner Hacker-Bomber | -6/Proximity Caves Hacker-Bomber | -6/Factory Bothacker-Bomber | -6/Garrison Bothacker-Bomber | -5/Factory Resources | -11 -10 -10 -9 -9 -9 -8 -8 -8 -8 -8 -7 -7 -7 -7 -6 -6 -6 -5 ----------- Run | Scr Mat Min Mat Min Exi Min Mat Gar Mat Gar Fac Low Low Dat Pro Fac Gar Fac Matter Collected 2459 | 249 308 71 162 8 . 48 269 101 60 72 356 83 17 . 22 176 78 379 Remotely . | . . . . . . . . . . . . . . . . . . . Salvage Created 17096 | . 503 163 983 219 . . 1753 644 1390 742 1796 687 161 . . 1633 939 5483 Parts 915 | . 36 10 87 11 . 9 94 68 74 48 104 39 6 . 3 79 62 185 Haulers Intercepted 24 | . 2 . 5 . . . 3 . 5 . 3 . . . . 3 . 3 Recyclers Shooed 4 | . . . . 1 . 2 . . . . . . . . . . . 1 Parts Field Recycled . | . . . . . . . . . . . . . . . . . . . Retrieved Matter . | . . . . . . . . . . . . . . . . . . . Parts Self-Destructed 41 | . . . . . . . . . . . . 19 8 . 14 . . . Prevented 24 | . . . . . . . . . . . . 19 2 . 3 . . . Kills | -11 -10 -10 -9 -9 -9 -8 -8 -8 -8 -8 -7 -7 -7 -7 -6 -6 -6 -5 ------- Run | Scr Mat Min Mat Min Exi Min Mat Gar Mat Gar Fac Low Low Dat Pro Fac Gar Fac Combat Hostiles Destroyed 337 | . 7 8 20 6 . 6 28 26 22 24 32 21 4 . 2 27 30 74 Guns 68 | . 6 3 8 3 . 3 1 11 6 8 5 6 2 . . 1 . 5 Cannons 169 | . . . . . . 1 16 9 8 13 19 7 2 . 1 22 24 47 AOE 77 | . 1 5 10 3 . 2 9 6 7 2 7 7 . . 1 1 3 13 Classes Destroyed 23 | . 3 2 4 . . . 6 . 3 . 2 2 . . . . . 1 Worker 14 | . . . . . . . 3 . . . 1 . . . . 3 . 7 Builder 12 | . . . 2 . . . 4 . 1 . 1 . . . . 2 . 2 Tunneler 1 | . . . 1 . . . . . . . . . . . . . . . Hauler 24 | . 2 . 5 . . . 3 . 5 . 3 . . . . 3 . 3 Recycler 8 | . . . . . . . 2 . 1 . 2 . . . . . . 3 Carrier 2 | . . . . . . . . . 1 . . . . . . . . 1 Mechanic 1 | . . . . . . . . . 1 . . . . . . . . . Operator 3 | . . . . . . . . . . . 1 . . . . 1 . 1 Watcher 18 | . 3 . 3 . . . 4 . . . 1 . . . . 3 . 4 Swarmer 85 | . . 5 4 . . 3 4 15 2 14 4 9 . . 1 7 13 4 Saboteur 1 | . . . . . . . . . . . . . . . . . . 1 Grunt 149 | . 7 2 9 6 . 3 15 6 9 8 17 6 2 . . 11 10 38 Brawler 11 | . . . . . . . 1 . 1 . 3 3 . . . . . 3 Duelist 8 | . . . 1 . . . . . 2 . . . . . . 2 1 2 Protector 5 | . . . . . . . . . 1 . . . . . . . . 4 Sentry 33 | . . . 6 . . . 4 4 5 1 1 1 1 . . 1 5 4 Demolisher 1 | . . 1 . . . . . . . . . . . . . . . . Specialist 6 | . . . . . . . 2 1 2 . . . . . . . . 1 Hunter 12 | . . . . . . . 1 . . 1 1 . . . 1 1 1 6 Programmer 19 | . . . . . . . . . . . 5 . 1 . . 3 . 10 Heavy 4 | . . . . . . . 1 . . . 1 . . . . 1 . 1 Behemoth 2 | . . . . . . . . . . . . 1 . . . 1 . . Mutant 1 | . . . . . . . . . . . . 1 . . . . . . Best Kill Streak 18 | . 4 3 6 2 . 3 8 13 7 5 7 11 2 . 1 7 15 18 Combat Bots Only 15 | . 3 3 4 2 . 3 5 13 5 5 6 11 2 . 1 7 15 14 Max Kills in Single Turn 11 | . 2 2 4 2 . 3 6 5 3 2 2 4 1 . 1 2 3 11 Gunslinging . | . . . . . . . . . . . . . . . . . . . Exploded 10 | . 1 2 3 2 . 2 5 4 2 1 2 4 . . 1 1 2 10 Melee . | . . . . . . . . . . . . . . . . . . . Uniques/NPCs Destroyed . | . . . . . . . . . . . . . . . . . . . Combat | -11 -10 -10 -9 -9 -9 -8 -8 -8 -8 -8 -7 -7 -7 -7 -6 -6 -6 -5 -------- Run | Scr Mat Min Mat Min Exi Min Mat Gar Mat Gar Fac Low Low Dat Pro Fac Gar Fac Damage Taken 14184 | . 233 380 886 103 . 262 1102 512 647 508 1468 812 165 . 185 1175 1277 4469 Core 10832 | . 186 286 572 82 . 203 850 368 496 374 1150 632 132 . 148 896 914 3543 Absorbed by Shields . | . . . . . . . . . . . . . . . . . . . Redirected to Core 9783 | . 157 224 533 47 . 148 659 321 469 331 1071 603 116 . 118 850 864 3272 Regen/Repaired (Parts) 7 | . . . . . . . . . . . . . . . . 7 . . Core Remaining (%) 92 | 100 . 70 . . . 100 . . . 90 . . . . 95 . 100 . Volleys Fired 679 | . 30 19 78 13 . 16 51 32 31 36 64 35 14 . 6 65 48 141 Largest 4 | . 3 2 2 2 . 3 3 4 4 4 4 4 3 . 4 4 4 4 Hottest 336 | . 110 70 73 73 . 133 162 212 212 212 237 237 204 . 237 282 282 336 Shots Fired 1725 | . 76 20 98 18 . 24 128 96 89 101 165 102 29 . 16 178 143 442 Gun 442 | . 75 18 76 13 . 16 13 31 28 30 30 18 6 . 4 19 . 65 Cannon 1086 | . . . . . . 4 89 56 56 67 105 66 18 . 10 147 130 338 Launcher 142 | . 1 2 22 5 . 4 26 9 5 3 19 17 . . 1 5 11 12 Special 55 | . . . . . . . . . . 1 11 1 5 . 1 7 2 27 Kinetic 33 | . 33 . . . . . . . . . . . . . . . . . Thermal 722 | . 23 . . . . 4 51 28 28 34 60 52 15 . 9 108 84 226 Explosive 5 | . 1 2 2 . . . . . . . . . . . . . . . Electromagnetic 910 | . 19 18 96 18 . 20 77 68 61 66 94 49 9 . 6 63 57 189 Robot Hit Streak 70 | . 7 6 28 10 . 17 18 20 41 21 49 62 26 . 18 46 33 70 Robot Miss Streak 5 | . 5 1 4 1 . 2 3 2 2 1 1 5 2 . 3 2 3 2 Penetration Max . | . . . . . . . . . . . . . . . . . . . Secondary Targets 2 | . 2 . . . . . . . . . . . . . . . . . Max Gunslinging Chain 1 | . 1 . . . . . . . . . . . . . . . . . Shots Hit Robots 1285 | . 50 18 79 15 . 19 82 75 69 59 122 75 21 . 13 148 97 343 Core Hits 752 | . 19 11 44 10 . 11 54 40 53 41 86 59 14 . 9 87 51 163 Critical Kills 9 | . . . . . . . . . . . . . . . . 2 2 5 Critical Parts Destroyed . | . . . . . . . . . . . . . . . . . . . Critical Strikes 17 | . . . . 1 . . 1 . . . . 1 . . . 4 2 8 Meltdown 9 | . . . . . . . . . . . . . . . . 2 2 5 Corrupt 8 | . . . . 1 . . 1 . . . . 1 . . . 2 . 3 Melee Attacks 44 | . 6 5 2 . . . . 21 8 2 . . . . . . . . Impact . | . . . . . . . . . . . . . . . . . . . Slashing . | . . . . . . . . . . . . . . . . . . . Piercing . | . . . . . . . . . . . . . . . . . . . Sneak Attacks 29 | . 6 3 2 . . . . 18 . . . . . . . . . . Combat Hostiles 3 | . . 1 . . . . . 2 . . . . . . . . . . Follow-up Attacks . | . . . . . . . . . . . . . . . . . . . Damage Inflicted 41396 | . 700 444 1899 338 . 539 3447 1437 2449 1759 3412 2160 426 . 347 4755 3513 13771 Guns 7326 | . 602 149 803 145 . 138 196 491 568 483 697 455 181 . 133 657 . 1628 Cannons 22027 | . . . . . . 93 1597 654 818 951 1781 1133 245 . 180 3641 2975 7959 Explosions 12043 | . 98 295 1096 193 . 308 1654 292 1063 325 934 572 . . 34 457 538 4184 Melee . | . . . . . . . . . . . . . . . . . . . Ramming . | . . . . . . . . . . . . . . . . . . . Kinetic 234 | . 234 . . . . . . . . . . . . . . . . . Thermal 21896 | . 148 41 360 16 . 167 765 427 1176 628 1326 1221 282 . 231 3208 2056 9844 Explosive 1781 | . 98 254 306 . . . 991 . . . . . . . . . . 132 Electromagnetic 17485 | . 220 149 1233 322 . 372 1691 1010 1273 1131 2086 939 144 . 116 1547 1457 3795 Impact . | . . . . . . . . . . . . . . . . . . . Slashing . | . . . . . . . . . . . . . . . . . . . Piercing . | . . . . . . . . . . . . . . . . . . . Highest Corruption 6 | . . . . . . . . . . . 2 . . . . 5 . 6 Average Corruption 1 | . . . . . . . . . . . 1 . . . . 1 . 3 Corruption Purged 7 | . . . . . . . . . . . 2 . . . . 5 . . Corruption Blocked . | . . . . . . . . . . . . . . . . . . . Effects 38 | . . . . . . . . . . . 13 . . . . 1 . 24 Message Errors 8 | . . . . . . . . . . . 4 . . . . . . 4 Matter Fused 10 | . . . . . . . . . . . 3 . . . . . . 7 Heat Flow Errors 3 | . . . . . . . . . . . . . . . . . . 3 Energy Discharges 4 | . . . . . . . . . . . 2 . . . . 1 . 1 Data Loss (minor) 4 | . . . . . . . . . . . 2 . . . . . . 2 Data Loss (major) 1 | . . . . . . . . . . . 1 . . . . . . . Misfires 2 | . . . . . . . . . . . 1 . . . . . . 1 Alerts 1 | . . . . . . . . . . . . . . . . . . 1 Weapon Failures 5 | . . . . . . . . . . . . . . . . . . 5 Overload Shots . | . . . . . . . . . . . . . . . . . . . Overflow Damage 909 | . 14 . 22 . . 1 10 22 14 43 114 65 . . . 101 43 460 Projectiles 479 | . . . . . . . 2 4 14 43 41 19 . . . 101 43 212 Explosions 430 | . 14 . 22 . . 1 8 18 . . 73 46 . . . . . 248 Melee . | . . . . . . . . . . . . . . . . . . . Knockbacks . | . . . . . . . . . . . . . . . . . . . Impact . | . . . . . . . . . . . . . . . . . . . Kinetic . | . . . . . . . . . . . . . . . . . . . Secondary . | . . . . . . . . . . . . . . . . . . . Self-Inflicted Damage 947 | . . 42 57 . . 43 116 19 184 48 9 95 . . . . 27 307 Shots 38 | . . 2 3 . . 4 3 2 6 4 1 4 . . . . 3 6 Rammed . | . . . . . . . . . . . . . . . . . . . Targets Rammed . | . . . . . . . . . . . . . . . . . . . Kicked . | . . . . . . . . . . . . . . . . . . . Crushed . | . . . . . . . . . . . . . . . . . . . Highest Temperature 411 | . 411 17 . . . . . 12 19 18 108 72 12 . 36 264 66 390 Average Temperature 65 | . 150 8 . . . . . 7 9 7 29 20 4 . 8 57 21 79 Received Heat Transfer 3951 | . 159 90 447 93 . 117 198 54 225 216 336 138 72 . 24 324 288 1170 Effects 7 | . 4 . . . . . . . . . . . . . . 2 . 1 Shutdowns 3 | . 2 . . . . . . . . . . . . . . . . 1 Interference 2 | . . . . . . . . . . . . . . . . 2 . . Matter Decay 2 | . 2 . . . . . . . . . . . . . . . . . Siege Activations . | . . . . . . . . . . . . . . . . . . . Robots Corrupted 11 | . . . 2 . . . 3 . 1 1 1 1 . . . 1 . 1 Combat Hostiles 10 | . . . 2 . . . 2 . 1 1 1 1 . . . 1 . 1 Parts Fried 70 | . . . 9 1 . 3 13 2 4 4 5 2 . . . 6 3 18 Impact Corruptions . | . . . . . . . . . . . . . . . . . . . Robots Melted 13 | . . . . . . . . . . . . . . . . 2 3 8 Combat Hostiles 13 | . . . . . . . . . . . . . . . . 2 3 8 Parts Melted 79 | . . . 1 . . . 2 4 3 2 2 1 1 . . 6 13 44 Heat Transferred 26449 | . 444 . 500 50 . 348 1160 632 1468 932 1656 1436 288 . 253 3983 2799 10500 Parts Sabotaged . | . . . . . . . . . . . . . . . . . . . Parts Stolen . | . . . . . . . . . . . . . . . . . . . Parts Stripped . | . . . . . . . . . . . . . . . . . . . Power Chain Reactions 52 | . . 1 5 1 . 1 6 3 7 4 4 4 . . . 5 3 8 Missiles Intercepted . | . . . . . . . . . . . . . . . . . . . Alert | -11 -10 -10 -9 -9 -9 -8 -8 -8 -8 -8 -7 -7 -7 -7 -6 -6 -6 -5 ------- Run | Scr Mat Min Mat Min Exi Min Mat Gar Mat Gar Fac Low Low Dat Pro Fac Gar Fac Peak Influence 2243 | . 191 232 598 279 . 137 869 1593 1252 1330 1074 . . . . 564 1078 2243 Initial 776 | . . 10 . 229 . . . 547 776 631 696 . . . . . 361 565 Average 606 | . 44 63 366 178 . 57 473 1238 922 1110 713 . . . . 232 809 1055 Maximum Alert Level 5 | . . 1 2 1 . . 3 4 4 4 3 . . . . 2 3 5 Low Security (%) 25 | 100 100 98 7 54 . 100 25 . . . . . . . . 41 . . Level 1 13 | . . 1 56 45 . . 22 . . . . . . . . 46 5 . Level 2 15 | . . . 35 . . . 16 10 . 2 48 . . . . 11 18 15 Level 3 30 | . . . . . . . 35 14 77 41 51 . . . . . 75 53 Level 4 12 | . . . . . . . . 75 22 55 . . . . . . . 11 Level 5 . | . . . . . . . . . . . . . . . . . . 2 High Security 1 | . . . . . . . . . . . . . . . . . . 16 Max Security . | . . . . . . . . . . . . . . . . . . . Squads Dispatched 61 | . 2 . 3 1 . . 7 . 5 . 14 . . . . 12 . 17 Investigation 12 | . 2 . 2 1 . . 1 . . . 2 . . . . 3 . 1 Extermination 10 | . . . . . . . . . . . 4 . . . . 4 . 2 Reinforcement 22 | . . . 1 . . . 6 . 1 . 4 . . . . 5 . 5 Assault 17 | . . . . . . . . . 4 . 4 . . . . . . 9 Garrison . | . . . . . . . . . . . . . . . . . . . Intercept . | . . . . . . . . . . . . . . . . . . . Searches Triggered . | . . . . . . . . . . . . . . . . . . . Data Miner Redirects 2 | . . . . . . . . . . . . . . . . 2 . . Construction Impeded 5 | . . . . . . . 1 . . . 1 . . . . 1 . 2 Haulers Reinforced 5 | . . . . . . . . . . . 1 . . . . 2 . 2 Active Scanning Responses . | . . . . . . . . . . . . . . . . . . . Cargo Convoy Interrupts 1 | . . . . . . . . . . . . . . . . . . 1 Alert ID Control Effect 3 | . . . . . . . . . . . . . . . . . . 3 Stealth | -11 -10 -10 -9 -9 -9 -8 -8 -8 -8 -8 -7 -7 -7 -7 -6 -6 -6 -5 --------- Run | Scr Mat Min Mat Min Exi Min Mat Gar Mat Gar Fac Low Low Dat Pro Fac Gar Fac Distress Signals 8 | . 1 . 3 . . . 2 . . . . . . . . . . 2 Communications Jammed . | . . . . . . . . . . . . . . . . . . . Distress Signals . | . . . . . . . . . . . . . . . . . . . Times Spotted 517 | . 12 20 31 7 . 6 47 36 46 27 48 20 5 . 9 43 33 127 Peak Tracking Total 13 | . 3 5 5 2 . 3 8 9 6 4 6 8 2 . 4 4 6 13 Tactical Retreats 20 | . . 1 1 . . . 9 . 2 1 1 . . . . . . 5 Traps | -11 -10 -10 -9 -9 -9 -8 -8 -8 -8 -8 -7 -7 -7 -7 -6 -6 -6 -5 ------- Run | Scr Mat Min Mat Min Exi Min Mat Gar Mat Gar Fac Low Low Dat Pro Fac Gar Fac Traps Triggered 15 | . 2 . 1 . . . 1 2 . 3 2 . . . . 3 . 1 Indirectly 6 | . . . . . . . 1 1 . 3 . . . . . 1 . . Trap Hack Attempts . | . . . . . . . . . . . . . . . . . . . Triggered . | . . . . . . . . . . . . . . . . . . . Disarmed . | . . . . . . . . . . . . . . . . . . . Reprogrammed 13 | . 13 . . . . . . . . . . . . . . . . . Reused 2 | . 2 . . . . . . . . . . . . . . . . . Traps Extracted . | . . . . . . . . . . . . . . . . . . . Installed . | . . . . . . . . . . . . . . . . . . . Triggered 7 | . 2 . . . . . . . . 1 . 2 . . 2 . . . Power Sources Rigged 33 | . . . . . . 1 9 5 4 3 9 . . . . . . 2 Exploded 23 | . . . . . . . 6 5 3 1 7 . . . . . . 1 Machines | -11 -10 -10 -9 -9 -9 -8 -8 -8 -8 -8 -7 -7 -7 -7 -6 -6 -6 -5 ---------- Run | Scr Mat Min Mat Min Exi Min Mat Gar Mat Gar Fac Low Low Dat Pro Fac Gar Fac Machines Disabled 66 | . . 1 3 1 . . 4 4 6 4 12 3 . . . 3 4 21 Max in Single Turn 9 | . . 1 1 1 . . 2 1 1 1 9 1 . . . 1 1 8 Garrison Relay 12 | . . . . . . . . 4 . 4 . . . . . . 4 . Machines Sabotaged . | . . . . . . . . . . . . . . . . . . . Garrisons Compromised . | . . . . . . . . . . . . . . . . . . . Overloaded Fab Kills . | . . . . . . . . . . . . . . . . . . . Hacking | -11 -10 -10 -9 -9 -9 -8 -8 -8 -8 -8 -7 -7 -7 -7 -6 -6 -6 -5 --------- Run | Scr Mat Min Mat Min Exi Min Mat Gar Mat Gar Fac Low Low Dat Pro Fac Gar Fac Machines Accessed 64 | . 9 . 10 1 1 . 4 . 4 . 11 . 1 4 . 13 . 6 Terminals 44 | . 7 . 9 . . . 3 . 3 . 7 . . . . 10 . 5 Fabricators 3 | . . . . . . . . . . . 1 . . . . 1 . 1 Repair Stations . | . . . . . . . . . . . . . . . . . . . Recycling Units 7 | . 2 . 1 . . . . . . . 3 . . . . 1 . . Scanalyzers . | . . . . . . . . . . . . . . . . . . . Garrison Access 3 | . . . . . . . 1 . 1 . . . . . . 1 . . Total Hacks 227 | . 34 . 38 1 1 . 18 . 15 . 36 . 1 28 . 44 . 11 Successful 138 | . 23 . 20 1 1 . 10 . 6 . 17 . 1 28 . 27 . 4 Failed 89 | . 11 . 18 . . . 8 . 9 . 19 . . . . 17 . 7 Catastrophic 18 | . 1 . 3 . . . . . 2 . 4 . . . . 2 . 6 Database Lockouts . | . . . . . . . . . . . . . . . . . . . Manual 127 | . 25 . 29 . 1 . 11 . 10 . 16 . . . . 30 . 5 Terminals 158 | . 32 . 30 . . . 14 . 10 . 24 . . . . 39 . 9 Fabricators 6 | . . . . . . . . . . . 2 . . . . 2 . 2 Repair Stations . | . . . . . . . . . . . . . . . . . . . Recycling Units 21 | . 2 . 8 . . . . . . . 10 . . . . 1 . . Scanalyzers . | . . . . . . . . . . . . . . . . . . . Garrison Access 11 | . . . . . . . 4 . 5 . . . . . . 2 . . Terminal Hacks 78 | . 12 . 4 1 1 . 5 . 3 . 8 . 1 28 . 14 . 1 Record 11 | . . . . . . . . . . . . . . 11 . . . . Part Schematic 10 | . . . . . . . . . . . . . . 10 . . . . Robot Schematic 4 | . . . . . . . . . . . . . . 4 . . . . Robot Analysis 2 | . 1 . . . . . . . . . . . . . . 1 . . Prototype ID Bank 9 | . 2 . 2 . . . 1 . . . . . . 3 . 1 . . Open Door 2 | . . . . 1 . . . . . . . . 1 . . . . . Open DSF 6 | . . . . . . . . . . . 2 . . . . 3 . 1 Branch Access Points 7 | . 1 . 1 . . . 1 . . . 2 . . . . 2 . . Machine Index 2 | . . . . . . . 1 . . . . . . . . 1 . . Terminal Index 4 | . . . 1 . . . 1 . . . 1 . . . . 1 . . Fabricator Index 1 | . . . . . . . . . . . . . . . . 1 . . Repair Station Index 1 | . . . . . . . . . . . . . . . . 1 . . Garrison Index 1 | . . . . . . . . . . . 1 . . . . . . . Unreport Threat 3 | . . . . . . . . . 2 . . . . . . 1 . . Locate Traps 6 | . 4 . . . . . . . 1 . 1 . . . . . . . Reprogram Traps 3 | . 3 . . . . . . . . . . . . . . . . . Dispatch Records 1 | . . . . . . . 1 . . . . . . . . . . . Registered Components 3 | . 1 . . . . . . . . . 1 . . . . 1 . . Registered Prototypes 1 | . . . . . . . . . . . . . . . . 1 . . EX-Prototype ID Bank 1 | . . . . . 1 . . . . . . . . . . . . . Fabricator Hacks 2 | . . . . . . . . . . . . . . . . 1 . 1 Network Status 2 | . . . . . . . . . . . . . . . . 1 . 1 Repair Station Hacks . | . . . . . . . . . . . . . . . . . . . Recycling Unit Hacks 10 | . 2 . 3 . . . . . . . 4 . . . . 1 . . Process 1 | . . . 1 . . . . . . . . . . . . . . . Report Inventory 7 | . 2 . 1 . . . . . . . 3 . . . . 1 . . Retrieve Matter 1 | . . . 1 . . . . . . . . . . . . . . . Retrieve Components 1 | . . . . . . . . . . . 1 . . . . . . . Scanalyzer . | . . . . . . . . . . . . . . . . . . . Garrison Access Hacks 5 | . . . . . . . 2 . 1 . . . . . . 2 . . Unlock Access 3 | . . . . . . . 1 . 1 . . . . . . 1 . . Coupler Status 2 | . . . . . . . 1 . . . . . . . . 1 . . Unauthorized Hacks 43 | . 9 . 13 . . . 3 . 2 . 5 . . . . 9 . 2 Terminals 35 | . 9 . 10 . . . 3 . 1 . 2 . . . . 8 . 2 Track 3 | . 1 . 1 . . . . . . . . . . . . 1 . . Botnet 29 | . 7 . 8 . . . 3 . 1 . 2 . . . . 6 . 2 Operators 3 | . 1 . 1 . . . . . . . . . . . . 1 . . Fabricators 1 | . . . . . . . . . . . . . . . . 1 . . Report 1 | . . . . . . . . . . . . . . . . 1 . . Repair Stations . | . . . . . . . . . . . . . . . . . . . Recycling Units 6 | . . . 3 . . . . . . . 3 . . . . . . . Monitor 2 | . . . 1 . . . . . . . 1 . . . . . . . Reject 2 | . . . 1 . . . . . . . 1 . . . . . . . Mask 2 | . . . 1 . . . . . . . 1 . . . . . . . Scanalyzers . | . . . . . . . . . . . . . . . . . . . Garrison Access 1 | . . . . . . . . . 1 . . . . . . . . . Broadcast 1 | . . . . . . . . . 1 . . . . . . . . . Data Cores Recovered 1 | . . . . . . . . . . . . . . . . . . 1 Used 1 | . . . . . . . . . . . . . . . . . . 1 Hacking Detections 46 | . 7 . 9 . . . 4 . 4 . 8 . . . . 9 . 5 Full Trace Events 5 | . . . . . . . . . 1 . 2 . . . . 1 . 1 Feedback Events . | . . . . . . . . . . . . . . . . . . . Feedback Blocked . | . . . . . . . . . . . . . . . . . . . Robot Schematics Acquired 4 | . . . . . . . . . . . . . . 4 . . . . Robots Built . | . . . . . . . . . . . . . . . . . . . Authchips . | . . . . . . . . . . . . . . . . . . . Time . | . . . . . . . . . . . . . . . . . . . Total Robot Build Rating . | . . . . . . . . . . . . . . . . . . . Part Schematics Acquired 10 | . . . . . . . . . . . . . . 10 . . . . Parts Built . | . . . . . . . . . . . . . . . . . . . Authchips . | . . . . . . . . . . . . . . . . . . . Time . | . . . . . . . . . . . . . . . . . . . Total Part Build Rating . | . . . . . . . . . . . . . . . . . . . Parts Repaired . | . . . . . . . . . . . . . . . . . . . Time . | . . . . . . . . . . . . . . . . . . . Parts Recycled . | . . . . . . . . . . . . . . . . . . . Recycled Matter 166 | . . . 166 . . . . . . . . . . . . . . . Retrieved Matter 195 | . . . 195 . . . . . . . . . . . . . . . Retrieved Components 2 | . . . . . . . . . . . 2 . . . . . . . Parts Scanalyzed . | . . . . . . . . . . . . . . . . . . . Part Schematics Acquired . | . . . . . . . . . . . . . . . . . . . Parts Damaged . | . . . . . . . . . . . . . . . . . . . Bothacking | -11 -10 -10 -9 -9 -9 -8 -8 -8 -8 -8 -7 -7 -7 -7 -6 -6 -6 -5 ------------ Run | Scr Mat Min Mat Min Exi Min Mat Gar Mat Gar Fac Low Low Dat Pro Fac Gar Fac Used RIF Installer 3 | . . . . . . . . 1 . 1 . . . . . . 1 . Threat Obfuscator 1 | . . . . . . . . . . 1 . . . . . . . . Alert ID Control 1 | . . . . . . . . . . . . . . . . . 1 . Robots Hacked 48 | . 3 3 1 . . . . 1 7 3 9 . 3 . 1 3 1 13 Non-combat 18 | . 3 . 1 . . . . . . . 5 . 2 . . 2 . 5 Combat 29 | . . 3 . . . . . 1 7 3 4 . 1 . . 1 1 8 Robot Hacks Applied 54 | . 4 3 1 . . . . 1 7 3 11 . 4 . . 4 1 15 parse_system 13 | . . 3 . . . . . 1 1 . 3 . 2 . . 2 . 1 no_distress 6 | . 3 . 1 . . . . . . . 1 . . . . . . 1 generate_echo 1 | . . . . . . . . . . . . . . . . . . 1 find_chute 1 | . . . . . . . . . . . . . . . . 1 . . drop_inventory 1 | . . . . . . . . . . . . . . . . . . 1 find_recycling 1 | . 1 . . . . . . . . . . . . . . . . . ignore_parts 1 | . . . . . . . . . . . 1 . . . . . . . find_station 2 | . . . . . . . . . . . 2 . . . . . . . deconstruct_bot 1 | . . . . . . . . . . . . . . . . . . 1 disable_shields 1 | . . . . . . . . . . . . . . . . . . 1 scatter_targeting 3 | . . . . . . . . . . . 1 . 1 . . . . 1 spike_heat 2 | . . . . . . . . . . . . . 1 . . . . 1 amplify_resonance 4 | . . . . . . . . . 1 . 1 . . . . . . 2 disable_weapons 1 | . . . . . . . . . 1 . . . . . . . . . go_dormant 1 | . . . . . . . . . 1 . . . . . . . . . overwrite_iff 4 | . . . . . . . . . 1 . . . . . . . . 3 formatsys_low 1 | . . . . . . . . . . . . . . . . 1 . . formatsys_high 10 | . . . . . . . . . 2 3 2 . . . . . 1 2 Manual 1 | . . . . . . . . . . . . . . . 1 . . . Relay Couplers Released 20 | . . . . . . . . 6 . 5 . . . . . . 8 1 Machine Destruction 19 | . . . . . . . . 6 . 5 . . . . . . 8 . Programmers 1 | . . . . . . . . . . . . . . . . . . 1 Attached 6 | . . . . . . . . . 1 1 1 . . . . 1 1 1 Fabnet Peak Effective % . | . . . . . . . . . . . . . . . . . . . Robots Rewired 11 | . . . . . . . . 7 . . . 4 . . . . . . Allies Hacked . | . . . . . . . . . . . . . . . . . . . Hacks Repelled . | . . . . . . . . . . . . . . . . . . . Allies | -11 -10 -10 -9 -9 -9 -8 -8 -8 -8 -8 -7 -7 -7 -7 -6 -6 -6 -5 -------- Run | Scr Mat Min Mat Min Exi Min Mat Gar Mat Gar Fac Low Low Dat Pro Fac Gar Fac Total Allies 32 | . . 4 . . . . . 7 3 3 2 4 . . 2 1 1 5 Largest Group 4 | . . 3 3 . . . . 4 4 3 2 3 3 3 4 2 1 2 Highest-Rated Group 189 | . . 40 40 . . . . 78 78 45 47 93 93 93 189 181 43 76 Highest-Rated Ally 96 | . . 31 16 . . . . 24 21 15 32 31 31 31 96 96 43 47 Total Orders 1 | . . . . . . . . . . . . . . . . 1 . . AID 1 | . . . . . . . . . . . . . . . . 1 . . Ally Attacks 326 | . . 18 24 . . . . 24 51 8 32 . 19 . 34 72 7 37 Total Damage 7637 | . . 219 246 . . . . 441 931 171 893 . 209 . 647 2976 223 681 Kills 72 | . . 6 5 . . . . 4 12 1 7 . 2 . 6 23 3 3 Allies Corrupted . | . . . . . . . . . . . . . . . . . . . Allies Melted . | . . . . . . . . . . . . . . . . . . . Intel | -11 -10 -10 -9 -9 -9 -8 -8 -8 -8 -8 -7 -7 -7 -7 -6 -6 -6 -5 ------- Run | Scr Mat Min Mat Min Exi Min Mat Gar Mat Gar Fac Low Low Dat Pro Fac Gar Fac Robot Analysis Total 2 | . 1 . . . . . . . . . . . . . . 1 . . Derelict Logs Recovered 5 | . . 2 . 1 . . . . . . . 1 1 . . . . . Drone Launches . | . . . . . . . . . . . . . . . . . . . Drone Recoveries . | . . . . . . . . . . . . . . . . . . . Exploration | -11 -10 -10 -9 -9 -9 -8 -8 -8 -8 -8 -7 -7 -7 -7 -6 -6 -6 -5 ------------- Run | Scr Mat Min Mat Min Exi Min Mat Gar Mat Gar Fac Low Low Dat Pro Fac Gar Fac Turns Passed 23586 | 78 1163 1467 1484 874 422 529 1568 1497 1773 1336 2813 1116 694 127 984 2442 1158 2061 Spaces Moved 10968 | 54 612 861 734 485 246 270 694 737 629 664 1124 558 383 77 417 1077 556 790 Core 16 | 16 . . . . . . . . . . . . . . . . . . Treads 10952 | 38 612 861 734 485 246 270 694 737 629 664 1124 558 383 77 417 1077 556 790 Legs . | . . . . . . . . . . . . . . . . . . . Wheels . | . . . . . . . . . . . . . . . . . . . Hover . | . . . . . . . . . . . . . . . . . . . Flight . | . . . . . . . . . . . . . . . . . . . Fastest Speed 50 | 50 160 160 160 170 170 170 166 170 170 167 167 167 167 167 167 167 167 167 Average Speed 167 | 127 160 160 164 170 170 170 180 170 170 169 167 167 167 167 167 167 167 167 Slowest Speed 250 | 160 160 160 250 170 170 170 250 170 170 170 167 167 167 167 167 167 167 167 Overloaded Moves . | . . . . . . . . . . . . . . . . . . . Propulsion Burnouts . | . . . . . . . . . . . . . . . . . . . Robots Hopped . | . . . . . . . . . . . . . . . . . . . Cave-ins Triggered . | . . . . . . . . . . . . . . . . . . . Exploration Rate (%) 63 | 4 95 100 76 91 61 62 69 83 50 80 24 69 54 69 67 42 78 25 Regions Visited 18 Branch Regions 8 Pre-discovered Areas 3 | . . 1 . 1 . . . . . . . . . 1 . . . . Known Exits Taken 7 | . 1 . 1 . . . 1 . 1 . 1 1 . . . 1 . . Unknown Exits Taken 8 | 1 . 1 . 1 1 1 . . . . . . 1 1 1 . . . Scrap Searched 8 | . . 1 . 2 . 2 . . . . . 1 1 . 1 . . . Spaces Dug . | . . . . . . . . . . . . . . . . . . . Terrain Destroyed 602 | . 12 23 31 2 . 7 73 4 68 4 69 25 . . . 9 13 262 Melee . | . . . . . . . . . . . . . . . . . . . Projectile 57 | . . . . . . . 4 1 7 . . . . . . 3 6 36 AOE 545 | . 12 23 31 2 . 7 69 3 61 4 69 25 . . . 6 7 226 Terrain Rammed . | . . . . . . . . . . . . . . . . . . . Walls Destroyed . | . . . . . . . . . . . . . . . . . . . Machines Disabled . | . . . . . . . . . . . . . . . . . . . Actions | -11 -10 -10 -9 -9 -9 -8 -8 -8 -8 -8 -7 -7 -7 -7 -6 -6 -6 -5 --------- Run | Scr Mat Min Mat Min Exi Min Mat Gar Mat Gar Fac Low Low Dat Pro Fac Gar Fac Total 14928 | 60 732 928 912 517 251 319 906 917 1268 801 1940 668 416 76 693 1588 685 1251 Wait 2347 | . 56 25 56 6 3 12 81 42 545 47 647 2 1 . 254 362 13 195 Move 10952 | 53 611 860 733 484 245 269 694 736 628 663 1123 557 382 76 416 1077 555 790 Hop . | . . . . . . . . . . . . . . . . . . . Pick Up 74 | . . . . . 1 2 14 10 5 10 13 3 . . . 4 6 6 Fast Attach 62 | 7 10 5 6 . . . 10 . . 2 8 . . . 2 7 . 5 Attach 26 | . . . . . 1 1 3 3 2 3 4 1 . . . 3 1 4 Detach . | . . . . . . . . . . . . . . . . . . . Swap 9 | . . . . . . . . . . . 3 . . . . 2 1 3 Drop 101 | . 8 4 5 . 1 . 17 9 4 10 15 1 . . 1 10 5 11 Fire 679 | . 30 19 78 13 . 16 51 32 31 36 64 35 14 . 6 65 48 141 Melee 44 | . 6 5 2 . . . . 21 8 2 . . . . . . . . Ram . | . . . . . . . . . . . . . . . . . . . Kick . | . . . . . . . . . . . . . . . . . . . Crush . | . . . . . . . . . . . . . . . . . . . Escape Stasis 3 | . . . . . . . . . . 3 . . . . . . . . Rewire 29 | . . . . . . . . 8 2 . . 18 . . . . . 1 Trap 33 | . . . . . . 1 9 5 4 3 9 . . . . . . 2 Miscellaneous 569 | . 11 10 32 14 . 18 27 51 39 22 54 51 19 . 14 58 56 93 Route ------- -11/Scrapyard -10/Materials (discovered 5 exits: *Mat x3 / *Min x2) -10/Mines (discovered 2 exits: *Mat x2) -9/Materials (discovered 4 exits: *Mat x2 / *Min / *Sto) -9/Mines (discovered 3 exits: *Mat x2 / *Exi) -9/Exiles -8/Mines -8/Materials (discovered 3 exits: *Fac x2 / Gar) -8/Garrison (discovered 3 exits: *Mat x3) -8/Materials (discovered 2 exits: *Fac / Gar) -8/Garrison (discovered 3 exits: *Fac x3) -7/Factory (discovered 3 exits: *Fac / *Low x2) -7/Lower Caves -7/Lower Caves -7/Data Miner -6/Proximity Caves -6/Factory (discovered 5 exits: *Fac x2 / *Low x2 / Gar) -6/Garrison (discovered 3 exits: *Fac x3) -5/Factory (discovered 2 exits: [*Fac] / [*Upp]) History --------- Turn | Location | Event 7 | -11/Scrapyard | Discovered new exit (range 16) 9 | -11/Scrapyard | Upgraded with Power slot (x1) 9 | -11/Scrapyard | Upgraded with Propulsion slot (x1) 9 | -11/Scrapyard | Upgraded with Utility slot (x1) 9 | -11/Scrapyard | Upgraded with Weapon slot (x2) 79 | -11/Scrapyard | Entered Materials 302 | -10/Materials | Discovered new exit (range 15) 338 | -10/Materials | Build established: Gunner 362 | -10/Materials | Discovered new exit (range 10) 381 | -10/Materials | Identified exit to Mines 807 | -10/Materials | Build established: Mutant 842 | -10/Materials | Discovered new exit (range 8) 987 | -10/Materials | Discovered new exit (range 13) 1242 | -10/Materials | Entered Mines 1243 | -10/Mines | Assembled infested the area 1244 | -10/Mines | Reached level 2 1245 | -10/Mines | Received a Mining Laser from a helpful Derelict 1249 | -10/Mines | Assisted by a Guerilla fighting off Assembled 1255 | -10/Mines | Upgraded with Utility slot (x1) 1350 | -10/Mines | Learned location of Recycling (-9) 1462 | -10/Mines | Learned Materials emergency access door positions 1489 | -10/Mines | Discovered new exit (range 5) 1498 | -10/Mines | Received a Rocket Launcher from a helpful Derelict 1673 | -10/Mines | Build established: Scavenger-Mutant 1919 | -10/Mines | Assisted by bots powering up and referring to "LRC-V3" 2040 | -10/Mines | Found a damaged Exp. Sensor Array with a note attached 2044 | -10/Mines | Found Prototype Device 2044 | -10/Mines | Identified Exp. Sensor Array 2079 | -10/Mines | Reached level 3 2119 | -10/Mines | Discovered new exit (range 9) 2709 | -10/Mines | Entered Materials 2709 | -9/Materials | Accompanied by 3 allies 2711 | -9/Materials | Reached level 4 2711 | -9/Materials | Upgraded with Utility slot (x1) 2805 | -9/Materials | Discovered new exit (range 14) 2922 | -9/Materials | Reached level 5 2932 | -9/Materials | Upgraded with Weapon slot (x1) 3535 | -9/Materials | Discovered new exit (range 16) 3580 | -9/Materials | Reached level 6 3669 | -9/Materials | Discovered new exit (range 15) 3756 | -9/Materials | Build established: Mutant 3914 | -9/Materials | Identified exit to Mines 3914 | -9/Materials | Identified exit to Storage 4022 | -9/Materials | Core integrity fell below 50% 4070 | -9/Materials | Discovered new exit (range 4) 4193 | -9/Materials | Entered Mines 4195 | -9/Mines | Reached level 7 4423 | -9/Mines | Learned location of Storage (-9) 4659 | -9/Mines | Discovered new exit (range 8) 4783 | -9/Mines | Discovered new exit (range 9) 4835 | -9/Mines | Met a Derelict shopkeep closing up shop 4892 | -9/Mines | Learned 2 Materials zone layouts 4987 | -9/Mines | Deemed a non-threat by the Exiles lab entrance 4987 | -9/Mines | Discovered new exit (range 5) 5067 | -9/Mines | Entered Exiles 5108 | -9/Exiles | Met 8R-AWN 5139 | -9/Exiles | Met EX-HEX 5185 | -9/Exiles | Met EX-BIN 5207 | -9/Exiles | Reached level 8 5207 | -9/Exiles | Aligned with FarCom system 5209 | -9/Exiles | Given EX-Vault access code 5254 | -9/Exiles | Opened EX-Vault 5267 | -9/Exiles | Found PSU Rigger 5305 | -9/Exiles | Warned to stay clear of 0b10 Research branches 5325 | -9/Exiles | Exiles lab attacked by MAIN.C 5467 | -9/Exiles | Discovered new exit (range 14) 5489 | -9/Exiles | Left Exiles lab with PSU Rigger 5489 | -9/Exiles | Entered Mines 5972 | -8/Mines | Discovered new exit (range 10) 6018 | -8/Mines | Entered Materials 6020 | -8/Materials | Reached level 9 6184 | -8/Materials | Reached level 10 6277 | -8/Materials | Upgraded with Propulsion slot (x1) 6498 | -8/Materials | Reached level 11 6625 | -8/Materials | Discovered new exit (range 11) 6929 | -8/Materials | Core integrity fell below 50% 7005 | -8/Materials | Build established: Tank 7125 | -8/Materials | Reached level 12 7180 | -8/Materials | Upgraded with Power slot (x1) 7180 | -8/Materials | Upgraded with Weapon slot (x1) 7241 | -8/Materials | Discovered new exit (range 16) 7586 | -8/Materials | Identified exit to Garrison 7586 | -8/Materials | Entered Garrison 7614 | -8/Garrison | Triggered checkpoint 7655 | -8/Garrison | Garrison Relay disabled 7738 | -8/Garrison | Triggered checkpoint 7741 | -8/Garrison | Triggered checkpoint 7741 | -8/Garrison | Triggered checkpoint 7792 | -8/Garrison | Destroyed 13 combat bots 7823 | -8/Garrison | Reached level 13 7890 | -8/Garrison | Triggered checkpoint 7926 | -8/Garrison | Triggered checkpoint 7956 | -8/Garrison | Garrison Relay disabled 7987 | -8/Garrison | Discovered new exit (range 15) 8110 | -8/Garrison | Triggered checkpoint 8154 | -8/Garrison | Garrison Relay disabled 8499 | -8/Garrison | Discovered new exit (range 11) 8586 | -8/Garrison | Build established: Gunner 8751 | -8/Garrison | Discovered new exit (range 11) 8778 | -8/Garrison | Installed Relay Interface Framework 8834 | -8/Garrison | Triggered checkpoint 9002 | -8/Garrison | Garrison Relay disabled 9083 | -8/Garrison | Entered Materials 9083 | -8/Materials | Accompanied by 4 allies 9377 | -8/Materials | Reached level 14 9483 | -8/Materials | First assault squad dispatched 9554 | -8/Materials | Discovered new exit (range 12) 10030 | -8/Materials | Build established: Bomber 10827 | -8/Materials | Upgraded with Propulsion slot (x1) 10846 | -8/Materials | Identified exit to Garrison 10856 | -8/Materials | Entered Garrison 10952 | -8/Garrison | Triggered checkpoint 10994 | -8/Garrison | Garrison Relay disabled 11100 | -8/Garrison | Triggered checkpoint 11112 | -8/Garrison | Triggered checkpoint 11204 | -8/Garrison | Triggered checkpoint 11223 | -8/Garrison | Garrison Relay disabled 11296 | -8/Garrison | Triggered checkpoint 11333 | -8/Garrison | Discovered new exit (range 15) 11448 | -8/Garrison | Triggered checkpoint 11539 | -8/Garrison | Discovered new exit (range 8) 11570 | -8/Garrison | Expanded RIF knowledge: Threat Obfuscation 11662 | -8/Garrison | Triggered checkpoint 11688 | -8/Garrison | Garrison Relay disabled 11688 | -8/Garrison | Reached level 15 11826 | -8/Garrison | Discovered new exit (range 8) 11886 | -8/Garrison | Triggered checkpoint 11936 | -8/Garrison | Garrison Relay disabled 11998 | -8/Garrison | Triggered checkpoint 12192 | -8/Garrison | Build established: Hacker-Mutant 12192 | -8/Garrison | Entered Factory 12192 | -7/Factory | Accompanied by 2 allies 12474 | -7/Factory | Identified exit to Lower Caves 12876 | -7/Factory | Build established: Hacker-Bomber 12992 | -7/Factory | First assault squad dispatched 13508 | -7/Factory | Reached level 16 13721 | -7/Factory | Upgraded with Utility slot (x1) 13837 | -7/Factory | Discovered new exit (range 14) 15005 | -7/Factory | Entered Lower Caves 15179 | -7/Lower Caves | Attracted the attention of an 0b10 outpost 15181 | -7/Lower Caves | Reached level 17 15212 | -7/Lower Caves | Destroyed 11 combat bots 15501 | -7/Lower Caves | Spotted B-75 Beast 15523 | -7/Lower Caves | Destroyed B-75 Beast 15527 | -7/Lower Caves | Identified exit to Lower Caves 15815 | -7/Lower Caves | Attacked by a delusional Derelict stockpiling Unaware 16121 | -7/Lower Caves | Entered another Lower Caves area 16121 | -7/Lower Caves | Accompanied by 3 allies 16378 | -7/Lower Caves | Discovered new exit (range 13) 16620 | -7/Lower Caves | Learned Factory garrison access intel 16632 | -7/Lower Caves | Attracted the attention of an 0b10 checkpoint 16815 | -7/Lower Caves | Entered Data Miner 16815 | -7/Data Miner | Accompanied by 3 allies 16815 | -7/Data Miner | Discovered new exit (range 6) 16846 | -7/Data Miner | Met Data Miner 16876 | -7/Data Miner | Learned location of Section 7 (-2) 16876 | -7/Data Miner | Acquired the access code to Warlord's prototype stash 16904 | -7/Data Miner | Received God Mode back door access code from Data Miner 16942 | -7/Data Miner | Entered Proximity Caves 16942 | -6/Proximity Caves | Accompanied by 3 allies 17218 | -6/Proximity Caves | Escorted by Enhanced Grunt 17220 | -6/Proximity Caves | Attracted the attention of an 0b10 checkpoint 17227 | -6/Proximity Caves | Reached level 18 17522 | -6/Proximity Caves | Received a Behemoth hack from an annoying Tinkerer 17639 | -6/Proximity Caves | Discovered new exit (range 8) 17817 | -6/Proximity Caves | Spotted B-75 Beast 17822 | -6/Proximity Caves | Befriended a Behemoth using the annoying Tinkerer's hack 17926 | -6/Proximity Caves | Entered Factory 17926 | -6/Factory | Accompanied by 2 allies 17927 | -6/Factory | Loaded intel: 4 garrison access locations 18133 | -6/Factory | Identified exit to Lower Caves 18181 | -6/Factory | Reached level 19 18187 | -6/Factory | Destroyed B-75 Beast 18269 | -6/Factory | Incoming investigation squad redirected 18696 | -6/Factory | Discovered new exit (range 8) 19064 | -6/Factory | Build established: Generator-Bomber 19177 | -6/Factory | Discovered new exit (range 4) 19802 | -6/Factory | Incoming investigation squad redirected 20088 | -6/Factory | Reached level 20 20132 | -6/Factory | Destroyed 7 combat bots 20227 | -6/Factory | Build established: Hacker-Bomber 20368 | -6/Factory | Identified exit to Garrison 20368 | -6/Factory | Entered Garrison 20400 | -6/Garrison | Triggered checkpoint 20434 | -6/Garrison | Garrison Relay disabled 20512 | -6/Garrison | Triggered checkpoint 20516 | -6/Garrison | Triggered checkpoint 20549 | -6/Garrison | Triggered checkpoint 20588 | -6/Garrison | Destroyed 15 combat bots 20682 | -6/Garrison | Triggered checkpoint 20705 | -6/Garrison | Garrison Relay disabled 20835 | -6/Garrison | Discovered new exit (range 12) 20980 | -6/Garrison | Triggered checkpoint 21017 | -6/Garrison | Garrison Relay disabled 21054 | -6/Garrison | Discovered new exit (range 11) 21084 | -6/Garrison | Expanded RIF knowledge: Alert ID Control 21168 | -6/Garrison | Triggered checkpoint 21331 | -6/Garrison | Discovered new exit (range 11) 21400 | -6/Garrison | Triggered checkpoint 21421 | -6/Garrison | Garrison Relay disabled 21471 | -6/Garrison | Build established: Bothacker-Bomber 21526 | -6/Garrison | Entered Factory 21528 | -5/Factory | Reached level 21 21859 | -5/Factory | Discovered new exit (range 11) 22062 | -5/Factory | Reached level 22 22122 | -5/Factory | Discovered new exit (range 8) 22726 | -5/Factory | First assault squad dispatched 22895 | -5/Factory | Core integrity fell below 50% 23009 | -5/Factory | Destroyed 14 combat bots 23089 | -5/Factory | Build established: Bothacker-Gunner 23248 | -5/Factory | Cargo convoy interrupted 23250 | -5/Factory | Reached level 23 23250 | -5/Factory | High security lockdown imminent 23298 | -5/Factory | Destroyed 7 combat bots 23308 | -5/Factory | Core integrity fell below 20% 23330 | -5/Factory | High security lockdown engaged 23469 | -5/Factory | Destroyed 14 combat bots 23587 | -5/Factory | Destroyed by H-66 Slayer with Gauss Rifle Last Messages --------------- 23567_ Penetrated by Slug. 23569_ Slug penetrates Wall. 23571_ Penetrated by Slug. 23571_ M-28 Smith fits Backup Propulsion III on M-28 Smith. 23572_ Targeting Computer fried. 23572_ H-66 Slayer destroyed. 23573_ Slug penetrates Wall. 23575_ G-50 Soldier destroyed. 23576_ Slug penetrates Wall. 23577_ Wall collapses. 23581_ G-50 Soldier destroyed. 23581_ C-30 ARC bursts open, deploying its payload. 23581_ P-70 Sage unfolds itself. 23581_ M-28 Smith unfolds itself. 23581_ P-70 Sage resets M-28 Smith, system corruption cleaned. 23581_ Slug penetrates Wall. 23584_ P-70 Sage destroyed. 23584_ Slug penetrates Wall. 23587_ Penetrated by Slug. [Achievement: Overachiever] Map ----- +----------------------------------------------------+ | ????????????????# """ """ ## ###! ! # | | ????????????????# """ """ ## #?# # | | ????????????????# ## #?# """ # | | ????????????????# = ## #?# """ # | | ????????????????############### #?# """ # | | ?????????????????????#######??# #?# | | ?????????????????????# ?# #?# | | ?????????????????????#""" !?# #?# "" "" | | ?????????????????????#""" # #?# ""T"" | | ?????????????????????#""" # #?# """ | | ?????????????????????# + #?# | | ?????????????????????#""" # #?########" | | ?????????????????????#""" # #?? ! #" | | ?????????????????????#""" ?# ;? #" | | ?????????????????????# ]?# #? ## | | ?????????????????????#######??# # ##### | | ??????????????????????# ;###### !=; [ #???? | | ??????????????????##### ;# # # %=%; #???? | | ????????????????### # # ; =m %== #???? | | ??????????? ??##;;;;#; !*= ; ] #???? | | ??????????? #%[!= i%! ; #???? | | ???????????" %;m=[!% * * #?########???? | | ????????????? *=g%%% [ % %##########???? | | ???????????????##=!=! % ; # | | ???????????????#!*! = # """""" # | | ????????????????#; !% @ # """""????? | | ????????????????## [ [%!p[ ; """"?????? | | ?????????????????# =m[%[ # """"?????? | | ?????????????????# !!*;;#?? ?????? | | ?????????????????# [m=h###?? """""????? | | ?????????????????# |;%#?????"""""????? | | ?????????????????# #%#?????""""?????? | | ?????????????????######;; ; # #??????""??????? | | ??????????????????????# #h#?????? ??????? | | ??????????????????????###### # ## #??????? ?????? | | ?????????????????????????########+#######+#+###### | | ???????????????????????# # ^ | | ???????????????????????# """ """ """ # % | | ??????????????????BB??????"" """ """ # * ! "" | | ??????????????????BB??????"" """ """ + """^ "" | | ????????????????????s????? # """ ^T" | | ??????????????????????????"" """ """ # """ "" | | ????????????????????s??????" """ """ # ^ "" | | ???????????????????????????? """ """ # """ | | ?????????????????????????????? ! # """ | | ???????????????????????????????########## """ | | ????????????????????????????????????????# | | ????????????????????????????????????????# """ """ | | ????????????????????????????????????????# """ """ | | ????????????????????????????????????????# """ """ | +----------------------------------------------------+ Best States ------------- Heat Dissipation 109 Energy Generation 44 Energy Capacity 610 Matter Stores 300 Matter Capacity 300 Sight Range 17 Terrain Scan Density 10 Armor Coverage 300 Resistance: KI 20 Resistance: TH 20 Resistance: EX 20 Weapon Shielding 33 Evasion (%) 50 Targeting Accuracy 16 Recoil Reduction 4 Offensive Hacking 10 Defensive Hacking 10 Relay Coupler Types 2 Relay Coupler Value 91 Item Schematics ----------------- Combat Drone Bay | -7/Data Miner | Free Lgt. Regenerative Plating | -7/Data Miner | Free Cld. Cesium-ion Thruster | -7/Data Miner | Free Gravity Neutralizer | -7/Data Miner | Free Imp. Heavy Laser | -7/Data Miner | Free Gyrokinetic Inverter | -7/Data Miner | Free Adv. Trap Extractor | -7/Data Miner | Free Hyp. Coil Gun | -7/Data Miner | Free Imp. Recalibrator | -7/Data Miner | Free Field Propulsion Array | -7/Data Miner | Free Robot Schematics ------------------ B-48 Gladiator | -7/Data Miner | Free G-47 Trooper | -7/Data Miner | Free C-17 Slicer | -7/Data Miner | Free G-50 Soldier | -7/Data Miner | Free Fabricated ------------ Nothing Alien Tech Used ----------------- None Achievements -------------- Overachiever Woof! Challenges ------------ None RPGLIKE | -11 -10 -10 -9 -9 -9 -8 -8 -8 -8 -8 -7 -7 -7 -7 -6 -6 -6 -5 --------- Run | Scr Mat Min Mat Min Exi Min Mat Gar Mat Gar Fac Low Low Dat Pro Fac Gar Fac Levels Raised 22 | . . 2 3 1 1 . 4 1 1 1 1 1 . . 1 2 . 3 XP Earned 36767 | 3000 1270 1972 5688 1325 350 1200 4908 2158 1342 860 2537 626 289 152 1281 2760 1016 4033 XP Spent 34455 | 2950 . 3050 4460 1515 1350 . 6125 1460 1500 1545 1400 1520 . . 1500 3035 . 3045 Upgrades 78 | 6 . 13 13 6 3 . 9 7 2 3 1 4 . . 2 5 . 4 Power Slot 2 | 1 . . . . . . 1 . . . . . . . . . . . Propulsion Slot 3 | 1 . . . . . . 1 . 1 . . . . . . . . . Utility Slot 4 | 1 . 1 1 . . . . . . . 1 . . . . . . . Weapon Slot 4 | 2 . . 1 . . . 1 . . . . . . . . . . . Core Integrity 17 | . . . 2 3 . . 1 6 . 1 . 2 . . . 1 . 1 Heat Dissipation 14 | . . 5 5 . . . 1 . . . . . . . . 2 . 1 Inventory Capacity 5 | . . . . 1 2 . . . . . . 1 . . . . . 1 Sight Range 1 | . . . . . 1 . . . . . . . . . . . . . Ranged Accuracy 10 | . . 2 . . . . 2 1 . 1 . . . . 1 2 . 1 Hack Attack % 2 | . . 1 . . . . . . 1 . . . . . . . . . Hack Defense % 2 | . . 1 . . . . . . . 1 . . . . . . . . KI Resistance % 4 | . . 1 1 1 . . 1 . . . . . . . . . . . TH Resistance % 4 | 1 . . 1 1 . . 1 . . . . . . . . . . . EX Resistance % 4 | . . 2 2 . . . . . . . . . . . . . . . TH Damage % 2 | . . . . . . . . . . . . 1 . . 1 . . . Protomatter Created 4816 | . 72 15 310 115 . 166 306 275 366 146 516 338 94 . 44 416 645 992 Integrity Restored 11621 | . 215 140 649 301 . 363 482 1055 650 354 1179 1115 383 . 227 1210 1213 2085 Core 9374 | . 186 110 544 286 . 203 441 769 504 255 1040 861 132 . 91 953 914 2085 Parts 2247 | . 29 30 105 15 . 160 41 286 146 99 139 254 251 . 136 257 299 . Protomatter Decayed 2014 | . . 59 95 . 78 21 220 200 386 9 190 . . . 138 220 242 156 Game ------ Seed AssembledMinesnifferWand Manual? 0 Play Time 04:04:42 Cumulative 117.0 hours Start 2022.10.08 @ 01:54:28 End 2022.10.08 @ 20:26:31 Sessions 1 Manual Loads 0 Difficulty Rogue Special Mode Winter2019/RPGLIKE Game No. 43 Rogue 7 Adventurer 0 Explorer 36 Win Type - Total 4 Types 0/1/0/2/0/0/0/0/1 Lore% 49 Gallery% 44 Achievement% 50 Wizard Run 0 Options --------- ASCII 0 Keyboard 0 Movement Mouse Keybinds 0 Fullscreen 2 Font 18/SmallcapsGlow Map View 76x50 Tactical HUD 1 Map Filters NONE Filters NONE Steam 1 RUN: 5f2b07ad-348d-4a1f-aa3f-961c345821ae